fUST/lending_fUST_20240722
["ID","MTS","AMOUNT","RATE_DAILY","PERIOD"]
[332872067,1721607061849,-500.0,0.00015889,2]
[332872068,1721607061858,-539.22,0.00015889,2]
[332872069,1721607061868,-500.0,0.00015889,2]
[332872070,1721607061878,-500.0,0.00015889,2]
[332872071,1721607061889,-203.39,0.00015889,2]
[332872072,1721607061900,-500.0,0.00015889,2]
[332872073,1721607061912,-500.0,0.00015889,2]
[332872074,1721607061922,-165.28,0.00015889,2]
[332872075,1721607062077,-1987.57,0.00015889,2]
[332872076,1721607062087,-1987.57,0.00015889,2]
[332872077,1721607062096,-1987.57,0.00015889,2]
[332872078,1721607062105,-1987.57,0.00015889,2]
[332872079,1721607062114,-1987.57,0.00015889,2]
[332872080,1721607062124,-1987.57,0.00015889,2]
[332872081,1721607062133,-1987.57,0.00015889,2]
[332872082,1721607062142,-1987.57,0.00015889,2]
[332872083,1721607062151,-1987.57,0.00015889,2]
[332872084,1721607062160,-1987.71,0.00015889,2]
[332872085,1721607062169,-500.0,0.00015889,2]
[332872086,1721607062178,-500.0,0.00015889,2]
[332872087,1721607062188,-500.0,0.00015889,2]
[332872088,1721607062197,-462.71,0.00015889,2]
[332872089,1721607062206,-500.0,0.0001589,2]
[332872090,1721607062215,-500.0,0.0001589,2]
[332872091,1721607062225,-500.0,0.0001589,2]
[332872092,1721607062234,-683.88,0.0001589,2]
[332872093,1721607062243,-2306.83,0.0001589,2]
[332872094,1721607062253,-500.0,0.0001589,2]
[332872095,1721607062262,-500.0,0.0001589,2]
[332872096,1721607062272,-500.0,0.0001589,2]
[332872097,1721607062281,-502.79063833,0.0001589,2]
[332872098,1721607062292,-500.0,0.0001589,2]
[332872099,1721607062301,-500.0,0.0001589,2]
[332872100,1721607062311,-500.0,0.0001589,2]
[332872101,1721607062321,-421.28,0.0001589,2]
[332872102,1721607062331,-504.54755025,0.0001589,2]
[332872103,1721607062340,-500.0,0.0001589,2]
[332872104,1721607062350,-500.0,0.0001589,2]
[332872105,1721607062359,-539.84,0.0001589,2]
[332872106,1721607062368,-2033.74,0.0001589,2]
[332872107,1721607062379,-500.0,0.0001589,2]
[332872108,1721607062391,-500.0,0.0001589,2]
[332872109,1721607062403,-500.0,0.0001589,2]
[332872110,1721607062413,-500.0,0.0001589,2]
[332872111,1721607062429,-1177.69,0.0001589,2]
[332872112,1721607062440,-735.43,0.0001589,2]
[332872113,1721607062449,-554.94,0.0001589,2]
[332872114,1721607062458,-500.0,0.0001589,2]
[332872115,1721607062470,-549.02,0.0001589,2]
[332872116,1721607062485,-685.82,0.0001589,2]
[332872117,1721607062494,-575.57,0.0001589,2]
[332872118,1721607062507,-1031.38,0.0001589,2]
[332872119,1721607062516,-500.0,0.0001589,2]
[332872120,1721607062526,-500.0,0.0001589,2]
[332872121,1721607062535,-315.62242505,0.0001589,2]
[332872122,1721607062545,-714.38,0.0001589,2]
[332872123,1721607062554,-500.0,0.0001589,2]
[332872124,1721607062563,-500.0,0.0001589,2]
[332872125,1721607062572,-505.12,0.0001589,2]
[332872126,1721607062581,-1365.28,0.0001589,2]
[332872127,1721607062591,-500.0,0.0001589,2]
[332872128,1721607062600,-647.07,0.0001589,2]
[332872129,1721607062611,-589.48,0.0001589,2]
[332872130,1721607062620,-508.21,0.0001589,2]
[332872131,1721607062629,-500.0,0.0001589,2]
[332872132,1721607062638,-768.59,0.0001589,2]
[332872133,1721607062647,-647.55,0.0001589,2]
[332872134,1721607062656,-500.0,0.0001589,2]
[332872135,1721607062666,-953.2,0.0001589,2]
[332872136,1721607062676,-500.0,0.0001589,2]
[332872137,1721607062686,-874.1,0.0001589,2]
[332872138,1721607062695,-519.25,0.0001589,2]
[332872139,1721607062704,-884.66,0.0001589,2]
[332872140,1721607062714,-1057.52,0.0001589,2]
[332872141,1721607062723,-1889.7,0.0001589,2]
[332872142,1721607062732,-500.0,0.0001589,2]
[332872143,1721607062742,-1132.04,0.0001589,2]
[332872144,1721607062751,-666.49,0.0001589,2]
[332872145,1721607062760,-668.28,0.0001589,2]
[332872146,1721607062770,-500.0,0.0001589,2]
[332872147,1721607062779,-1624.09,0.0001589,2]
[332872148,1721607062789,-500.0,0.0001589,2]
[332872149,1721607062799,-976.27,0.0001589,2]
[332872150,1721607062808,-642.19,0.0001589,2]
[332872151,1721607062818,-552.84,0.0001589,2]
[332872152,1721607062827,-837.86,0.0001589,2]
[332872153,1721607062837,-500.0,0.0001589,2]
[332872154,1721607062846,-838.14,0.0001589,2]
[332872155,1721607062855,-500.0,0.0001589,2]
[332872156,1721607062865,-2035.58,0.0001589,2]
[332872157,1721607062875,-554.09,0.0001589,2]
[332872158,1721607062884,-500.0,0.0001589,2]
[332872159,1721607062894,-1328.22,0.0001589,2]
[332872160,1721607062904,-500.0,0.0001589,2]
[332872161,1721607062914,-500.0,0.0001589,2]
[332872162,1721607062925,-506.13,0.0001589,2]
[332872163,1721607062935,-1470.26,0.0001589,2]
[332872164,1721607062944,-2054.5,0.0001589,2]
[332872165,1721607062955,-500.0,0.0001589,2]
[332872166,1721607062964,-628.44,0.0001589,2]
[332872167,1721607062974,-500.0,0.0001589,2]
[332872168,1721607062983,-500.0,0.0001589,2]
[332872169,1721607062993,-700.9,0.0001589,2]
[332872170,1721607063002,-500.0,0.0001589,2]
[332872171,1721607063012,-500.0,0.0001589,2]
[332872172,1721607063022,-630.92,0.0001589,2]
[332872173,1721607063032,-1078.09,0.0001589,2]
[332872174,1721607063042,-816.07,0.0001589,2]
[332872175,1721607063051,-500.0,0.0001589,2]
[332872176,1721607063061,-627.68,0.0001589,2]
[332872177,1721607063071,-604.38,0.0001589,2]
[332872178,1721607063080,-649.28,0.0001589,2]
[332872179,1721607063089,-2006.04,0.0001589,2]
[332872180,1721607063098,-500.0,0.0001589,2]
[332872181,1721607063107,-500.0,0.0001589,2]
[332872182,1721607063117,-565.27,0.0001589,2]
[332872183,1721607063126,-527.61,0.0001589,2]
[332872184,1721607063135,-500.0,0.0001589,2]
[332872185,1721607063144,-500.0,0.0001589,2]
[332872186,1721607063153,-500.0,0.0001589,2]
[332872187,1721607063163,-493.61586737,0.0001589,2]
[332872188,1721607063172,-666.18,0.0001589,2]
[332872189,1721607063181,-3069.31,0.0001589,2]
[332872190,1721607063191,-859.08,0.0001589,2]
[332872191,1721607063200,-500.0,0.0001589,2]
[332872192,1721607063210,-500.0,0.0001589,2]
[332872193,1721607063219,-500.0,0.0001589,2]
[332872194,1721607063230,-1517.82,0.0001589,2]
[332872195,1721607063240,-1176.08,0.0001589,2]
[332872196,1721607063249,-500.0,0.0001589,2]
[332872197,1721607063258,-500.0,0.0001589,2]
[332872198,1721607063269,-500.0,0.0001589,2]
[332872199,1721607063278,-500.0,0.0001589,2]
[332872200,1721607063288,-500.0,0.0001589,2]
[332872201,1721607063297,-1445.42,0.0001589,2]
[332872202,1721607063306,-500.0,0.0001589,2]
[332872203,1721607063316,-500.0,0.0001589,2]
[332872204,1721607063325,-771.46,0.0001589,2]
[332872205,1721607063335,-2045.09,0.0001589,2]
[332872206,1721607063344,-500.0,0.0001589,2]
[332872207,1721607063353,-500.0,0.0001589,2]
[332872208,1721607063362,-930.2,0.0001589,2]
[332872209,1721607063371,-500.0,0.0001589,2]
[332872210,1721607063382,-684.13,0.0001589,2]
[332872211,1721607063393,-500.0,0.0001589,2]
[332872212,1721607063404,-687.94,0.0001589,2]
[332872213,1721607063413,-1866.61,0.0001589,2]
[332872214,1721607063427,-1337.16,0.0001589,2]
[332872215,1721607063437,-565.6,0.0001589,2]
[332872216,1721607063447,-561.68,0.0001589,2]
[332872217,1721607063456,-723.1,0.0001589,2]
[332872218,1721607063467,-500.0,0.0001589,2]
[332872219,1721607063477,-1520.82,0.0001589,2]
[332872220,1721607063487,-500.0,0.0001589,2]
[332872221,1721607063497,-1951.93,0.0001589,2]
[332872222,1721607063510,-2114.25,0.0001589,2]
[332872223,1721607063520,-1164.77,0.0001589,2]
[332872224,1721607063530,-500.0,0.0001589,2]
[332872225,1721607063541,-1320.34,0.0001589,2]
[332872226,1721607063551,-744.8,0.0001589,2]
[332872227,1721607063560,-1724.01,0.0001589,2]
[332872228,1721607063571,-500.0,0.0001589,2]
[332872229,1721607063581,-1333.01,0.0001589,2]
[332872230,1721607063589,-500.0,0.0001589,2]
[332872231,1721607063599,-504.86,0.0001589,2]
[332872232,1721607063608,-531.31,0.0001589,2]
[332872233,1721607063616,-2564.77,0.0001589,2]
[332872234,1721607063626,-503.98,0.0001589,2]
[332872235,1721607063635,-1473.72,0.0001589,2]
[332872236,1721607063644,-539.18269639,0.0001589,2]
[332872237,1721607063654,-500.0,0.0001589,2]
[332872238,1721607063663,-579.86,0.0001589,2]
[332872239,1721607063673,-674.71,0.0001589,2]
[332872240,1721607063684,-1005.89,0.0001589,2]
[332872241,1721607063693,-500.0,0.0001589,2]
[332872242,1721607063702,-500.0,0.0001589,2]
[332872243,1721607063712,-500.0,0.0001589,2]
[332872244,1721607063721,-5550.3,0.0001589,2]
[332872245,1721607063730,-1341.62,0.0001589,2]
[332872246,1721607063740,-1204.73,0.0001589,2]
[332872247,1721607063749,-12941.36,0.0001589,2]
[332872248,1721607063758,-1907.18,0.0001589,2]
[332872249,1721607063767,-500.0,0.0001589,2]
[332872250,1721607063777,-3689.8,0.0001589,2]
[332872251,1721607063786,-500.0,0.0001589,2]
[332872252,1721607063796,-500.0,0.0001589,2]
[332872253,1721607063805,-1624.15,0.0001589,2]
[332872254,1721607063815,-3041.94,0.0001589,2]
[332872255,1721607063825,-1054.8,0.0001589,2]
[332872256,1721607063834,-2090.47,0.0001589,2]
[332872257,1721607063844,-500.0,0.0001589,2]
[332872258,1721607063854,-1806.74,0.0001589,2]
[332872259,1721607063864,-1940.21779914,0.0001589,2]
[332872260,1721607064080,-574.92470648,0.00013698,2]
[332872261,1721607064089,-261.91220086,0.0001589,2]
[332872262,1721607064099,-500.0,0.0001589,2]
[332872263,1721607064108,-500.0,0.0001589,2]
[332872264,1721607064118,-2213.48,0.0001589,2]
[332872265,1721607064127,-4016.4,0.0001589,2]
[332872266,1721607064137,-500.0,0.0001589,2]
[332872267,1721607064146,-500.0,0.0001589,2]
[332872268,1721607064156,-500.0,0.0001589,2]
[332872269,1721607064165,-2197.7,0.0001589,2]
[332872270,1721607064175,-1723.55,0.0001589,2]
[332872271,1721607064187,-500.0,0.0001589,2]
[332872272,1721607064197,-652.01,0.0001589,2]
[332872273,1721607064206,-5397.5,0.0001589,2]
[332872274,1721607064216,-1092.54,0.0001589,2]
[332872275,1721607064226,-993.63,0.0001589,2]
[332872276,1721607064235,-917.62,0.0001589,2]
[332872277,1721607064245,-500.0,0.0001589,2]
[332872278,1721607064254,-500.0,0.0001589,2]
[332872279,1721607064264,-1170.03,0.0001589,2]
[332872280,1721607064274,-716.45,0.0001589,2]
[332872281,1721607064286,-4132.02,0.0001589,2]
[332872282,1721607064297,-500.0,0.0001589,2]
[332872283,1721607064306,-500.0,0.0001589,2]
[332872284,1721607064315,-2222.11,0.0001589,2]
[332872285,1721607064327,-818.39,0.0001589,2]
[332872286,1721607064336,-935.93,0.0001589,2]
[332872287,1721607064345,-7400.98,0.0001589,2]
[332872288,1721607064355,-500.0,0.0001589,2]
[332872289,1721607064365,-930.77,0.0001589,2]
[332872290,1721607064374,-500.0,0.0001589,2]
[332872291,1721607064384,-734.72,0.0001589,2]
[332872292,1721607064395,-500.0,0.0001589,2]
[332872293,1721607064404,-500.0,0.0001589,2]
[332872294,1721607064414,-1669.97,0.0001589,2]
[332872295,1721607064424,-850.61,0.0001589,2]
[332872296,1721607064437,-552.12,0.0001589,2]
[332872297,1721607064447,-500.0,0.0001589,2]
[332872298,1721607064457,-930.18,0.0001589,2]
[332872299,1721607064467,-500.0,0.0001589,2]
[332872300,1721607064477,-1082.74,0.0001589,2]
[332872301,1721607064486,-1077.15,0.0001589,2]
[332872302,1721607064495,-2665.28,0.0001589,2]
[332872303,1721607064508,-1492.38,0.0001589,2]
[332872304,1721607064518,-500.0,0.0001589,2]
[332872305,1721607064527,-1378.02,0.0001589,2]
[332872306,1721607064538,-513.23583823,0.0001589,2]
[332872307,1721607064547,-1450.96,0.0001589,2]
[332872308,1721607064557,-500.0,0.0001589,2]
[332872309,1721607064567,-500.0,0.0001589,2]
[332872310,1721607064577,-500.0,0.0001589,2]
[332872311,1721607064586,-559.28,0.0001589,2]
[332872312,1721607064596,-776.21,0.0001589,2]
[332872313,1721607064605,-2703.39,0.0001589,2]
[332872314,1721607064614,-500.0,0.0001589,2]
[332872315,1721607064624,-508.21,0.0001589,2]
[332872316,1721607064635,-422.06149942,0.0001589,2]
[332872380,1721608232021,-154.77557542,9.999e-05,2]
[332872382,1721608232030,-521.35008694,9.999e-05,2]
[332872384,1721608232040,-493.63662636,9.999e-05,2]
[332872386,1721608232050,-155.70429949,9.999e-05,2]
[332872388,1721608232060,-268.79911606,9.999e-05,2]
[332872391,1721608232070,-423.3479573,0.00011039,2]
[332872393,1721608232079,-250.0,0.00011744,2]
[332872394,1721608232088,-250.0,0.00011776,2]
[332872397,1721608232098,-250.0,0.00011808,2]
[332872399,1721608232108,-250.0,0.0001184,2]
[332872401,1721608232118,-300.0,0.00011871,2]
[332872403,1721608232127,-300.0,0.00011871,2]
[332872405,1721608232137,-250.0,0.00011873,2]
[332872407,1721608232146,-250.0,0.00011905,2]
[332872408,1721608232155,-250.0,0.00011937,2]
[332872410,1721608232165,-250.0,0.00011969,2]
[332872412,1721608232174,-188.9700164,0.00011978,2]
[332872415,1721608232187,-250.0,0.00012001,2]
[332872416,1721608232196,-250.0,0.00012034,2]
[332872418,1721608232206,-250.0,0.00012066,2]
[332872420,1721608232215,-250.0,0.00012098,2]
[332872422,1721608232224,-7338.56578287,0.00012115,2]
[332872444,1721608238020,-268.79911606,9.999e-05,2]
[332872445,1721608238030,-13345.30088394,0.00012115,2]
[332872446,1721608238080,-4216.13333319,0.00012115,2]
[332872447,1721608238090,-250.0,0.0001213,2]
[332872448,1721608238099,-250.0,0.00012163,2]
[332872449,1721608238109,-250.0,0.00012195,2]
[332872451,1721608238118,-250.0,0.00012227,2]
[332872453,1721608238128,-250.0,0.00012259,2]
[332872454,1721608238137,-250.0,0.00012291,2]
[332872455,1721608238146,-250.0,0.00012324,2]
[332872456,1721608238155,-250.0,0.00012356,2]
[332872457,1721608238165,-3664.30854897,0.000129,2]
[332872458,1721608238174,-420.0,0.00013058,2]
[332872459,1721608238183,-3664.30854895,0.00013231,2]
[332872460,1721608238193,-11750.1309812,0.00013672,2]
[332872474,1721608240171,-312.2633,0.00013672,2]
[332872475,1721608240184,-3388.58765053,0.00013672,2]
[332872476,1721608240195,-2000.0,0.00013675,2]
[332872477,1721608240204,-127690.48690095,0.00013688,2]
[332872504,1721608246187,-96313.05155405,0.00013688,2]
[332872505,1721608246200,-208.16958579,0.00013698,2]
[332872506,1721608246210,-500.0,0.00013698,2]
[332872507,1721608246220,-500.0,0.00013698,2]
[332872508,1721608246229,-450.97711158,0.00013698,2]
[332872509,1721608246239,-500.0,0.00013698,2]
[332872510,1721608246249,-500.0,0.00013698,2]
[332872511,1721608246259,-500.0,0.00013698,2]
[332872512,1721608246268,-358.23991,0.00013698,2]
[332872513,1721608246277,-1465.2,0.00013698,2]
[332872514,1721608246287,-527.23,0.00013698,2]
[332872515,1721608246297,-500.0,0.00013698,2]
[332872516,1721608246306,-500.0,0.00013698,2]
[332872517,1721608246316,-500.0,0.00013698,2]
[332872518,1721608246326,-500.0,0.00013698,2]
[332872519,1721608246335,-500.0,0.00013698,2]
[332872520,1721608246344,-500.0,0.00013698,2]
[332872521,1721608246354,-1178.55,0.00013698,2]
[332872522,1721608246364,-509.46276478,0.00013698,2]
[332872523,1721608246373,-500.0,0.00013698,2]
[332872524,1721608246383,-500.0,0.00013698,2]
[332872525,1721608246393,-500.0,0.00013698,2]
[332872526,1721608246403,-504.86,0.00013698,2]
[332872527,1721608246412,-377.65,0.00013698,2]
[332872528,1721608246421,-500.0,0.00013698,2]
[332872529,1721608246431,-1672.06,0.00013698,2]
[332872530,1721608246440,-500.0,0.00013698,2]
[332872531,1721608246450,-500.0,0.00013698,2]
[332872532,1721608246459,-500.0,0.00013698,2]
[332872533,1721608246468,-522.55,0.00013698,2]
[332872534,1721608246477,-500.0,0.00013698,2]
[332872535,1721608246487,-539.18269639,0.00013698,2]
[332872536,1721608246496,-500.0,0.00013698,2]
[332872537,1721608246506,-500.0,0.00013698,2]
[332872538,1721608246515,-531.31,0.00013698,2]
[332872539,1721608246525,-500.0,0.00013698,2]
[332872540,1721608246534,-500.0,0.00013698,2]
[332872541,1721608246543,-500.0,0.00013698,2]
[332872542,1721608246554,-500.0,0.00013698,2]
[332872543,1721608246563,-500.0,0.00013698,2]
[332872544,1721608246572,-579.86,0.00013698,2]
[332872545,1721608246581,-500.0,0.00013698,2]
[332872546,1721608246590,-500.0,0.00013698,2]
[332872547,1721608246599,-500.0,0.00013698,2]
[332872548,1721608246609,-500.0,0.00013698,2]
[332872549,1721608246619,-500.0,0.00013698,2]
[332872550,1721608246628,-500.0,0.00013698,2]
[332872551,1721608246638,-500.0,0.00013698,2]
[332872552,1721608246647,-429.13249511,0.00013698,2]
[332872668,1721609438206,-300.0,9.998e-05,2]
[332872669,1721609438216,-155.70429949,9.999e-05,2]
[332872670,1721609438227,-521.35008694,9.999e-05,2]
[332872671,1721609438237,-163.31805921,9.999e-05,2]
[332872672,1721609438249,-521.09565697,9.999e-05,2]
[332872673,1721609438260,-162.87421769,9.999e-05,2]
[332872674,1721609438271,-887.31675178,9.999e-05,2]
[332872675,1721609438281,-38.70915215,9.999e-05,2]
[332872676,1721609438295,-116.06642327,9.999e-05,2]
[332872677,1721609438306,-154.77557542,9.999e-05,2]
[332872678,1721609438316,-156.54596423,9.999e-05,2]
[332872679,1721609438327,-483.62143992,9.999e-05,2]
[332872680,1721609438340,-10.01518644,9.999e-05,2]
[332872681,1721609438350,-240.51585871,9.999e-05,2]
[332872682,1721609438360,-420.0,0.00010998,2]
[332872683,1721609438370,-24900.0,0.00011293,2]
[332872684,1721609438380,-250.0,0.00011414,2]
[332872685,1721609438391,-250.0,0.00011445,2]
[332872686,1721609438401,-239.07496134,0.00011476,2]
[332872687,1721609438415,-10.92503866,0.00011476,2]
[332872688,1721609438425,-250.0,0.00011508,2]
[332872689,1721609438436,-250.0,0.00011539,2]
[332872690,1721609438447,-250.0,0.0001157,2]
[332872691,1721609438458,-250.0,0.00011602,2]
[332872692,1721609438469,-250.0,0.00011633,2]
[332872693,1721609438479,-250.0,0.00011664,2]
[332872694,1721609438490,-250.0,0.00011695,2]
[332872695,1721609438501,-250.0,0.00011727,2]
[332872696,1721609438511,-250.0,0.00011758,2]
[332872697,1721609438522,-250.0,0.00011789,2]
[332872698,1721609438532,-250.0,0.00011821,2]
[332872699,1721609438543,-250.0,0.00011852,2]
[332872700,1721609438554,-250.0,0.00011883,2]
[332872701,1721609438567,-250.0,0.00011915,2]
[332872702,1721609438578,-250.0,0.00011946,2]
[332872703,1721609438589,-250.0,0.00011977,2]
[332872704,1721609438603,-250.0,0.00012009,2]
[332872705,1721609438613,-587.0,0.00012098,2]
[332872706,1721609438625,-348.0,0.00013307,2]
[332872707,1721609438636,-5277.92757467,0.0001358,2]
[332872708,1721609438647,-186.6451572,0.00013588,2]
[332872709,1721609438660,-1421.83156797,0.00013598,2]
[332872710,1721609438672,-5304.19710114,0.00013617,2]
[332872711,1721609438683,-367.35615468,0.0001367,2]
[332872712,1721609438695,-11962.10719993,0.00013688,2]
[332872721,1721609440246,-416782.35940007,0.00013688,2]
[332872722,1721609440257,-70.86750489,0.00013698,2]
[332872723,1721609440268,-500.0,0.00013698,2]
[332872724,1721609440279,-560.87,0.00013698,2]
[332872725,1721609440290,-500.0,0.00013698,2]
[332872726,1721609440300,-500.0,0.00013698,2]
[332872727,1721609440311,-500.0,0.00013698,2]
[332872728,1721609440322,-500.0,0.00013698,2]
[332872729,1721609440332,-483.21411368,0.00013698,2]
[332872730,1721609440343,-500.0,0.00013698,2]
[332872731,1721609440353,-500.0,0.00013698,2]
[332872732,1721609440364,-500.0,0.00013698,2]
[332872733,1721609440374,-500.0,0.00013698,2]
[332872734,1721609440384,-262.38353865,0.00013698,2]
[332872735,1721609440396,-500.0,0.00013698,2]
[332872736,1721609440407,-500.0,0.00013698,2]
[332872737,1721609440419,-561.68,0.00013698,2]
[332872738,1721609440430,-500.0,0.00013698,2]
[332872739,1721609440442,-503.98,0.00013698,2]
[332872740,1721609440452,-500.0,0.00013698,2]
[332872741,1721609440464,-500.0,0.00013698,2]
[332872742,1721609440475,-500.0,0.00013698,2]
[332872743,1721609440487,-500.0,0.00013698,2]
[332872744,1721609440498,-445.06,0.00013698,2]
[332872745,1721609440509,-500.0,0.00013698,2]
[332872746,1721609440521,-150.65,0.00013698,2]
[332872747,1721609440532,-500.0,0.00013698,2]
[332872748,1721609440544,-500.0,0.00013698,2]
[332872749,1721609440555,-500.0,0.00013698,2]
[332872750,1721609440565,-557.52,0.00013698,2]
[332872751,1721609440576,-500.0,0.00013698,2]
[332872752,1721609440587,-612.39,0.00013698,2]
[332872753,1721609440599,-458.19,0.00013698,2]
[332872754,1721609440611,-500.0,0.00013698,2]
[332872755,1721609440621,-578.09,0.00013698,2]
[332872756,1721609440631,-275.66,0.00013698,2]
[332872757,1721609440642,-500.0,0.00013698,2]
[332872758,1721609440653,-505.89,0.00013698,2]
[332872759,1721609440664,-500.0,0.00013698,2]
[332872760,1721609440675,-500.0,0.00013698,2]
[332872761,1721609440685,-500.0,0.00013698,2]
[332872762,1721609440695,-500.0,0.00013698,2]
[332872763,1721609440706,-500.0,0.00013698,2]
[332872764,1721609440717,-500.0,0.00013698,2]
[332872765,1721609440727,-500.0,0.00013698,2]
[332872766,1721609440738,-482.2656676,0.00013698,2]
[332872767,1721609440748,-521.74,0.00013698,2]
[332872768,1721609440759,-500.0,0.00013698,2]
[332872769,1721609440769,-500.0,0.00013698,2]
[332872770,1721609440779,-500.0,0.00013698,2]
[332872771,1721609440791,-500.0,0.00013698,2]
[332872772,1721609440801,-500.0,0.00013698,2]
[332872773,1721609440811,-500.0,0.00013698,2]
[332872774,1721609440821,-500.0,0.00013698,2]
[332872775,1721609440831,-500.0,0.00013698,2]
[332872776,1721609440843,-506.13,0.00013698,2]
[332872777,1721609440853,-500.0,0.00013698,2]
[332872778,1721609440863,-500.0,0.00013698,2]
[332872779,1721609440872,-500.0,0.00013698,2]
[332872780,1721609440883,-500.0,0.00013698,2]
[332872781,1721609440893,-500.0,0.00013698,2]
[332872782,1721609440903,-580.04180951,0.00013698,2]
[332872783,1721609440913,-500.0,0.00013698,2]
[332872784,1721609440923,-500.0,0.00013698,2]
[332872785,1721609440933,-500.0,0.00013698,2]
[332872786,1721609440944,-500.0,0.00013698,2]
[332872787,1721609440954,-500.0,0.00013698,2]
[332872788,1721609440964,-500.0,0.00013698,2]
[332872789,1721609440974,-318.39,0.00013698,2]
[332872790,1721609440984,-500.0,0.00013698,2]
[332872791,1721609440994,-500.0,0.00013698,2]
[332872792,1721609441004,-500.0,0.00013698,2]
[332872793,1721609441015,-500.0,0.00013698,2]
[332872794,1721609441025,-500.0,0.00013698,2]
[332872795,1721609441036,-500.0,0.00013698,2]
[332872796,1721609441047,-500.0,0.00013698,2]
[332872797,1721609441058,-500.0,0.00013698,2]
[332872798,1721609441069,-500.0,0.00013698,2]
[332872799,1721609441079,-500.0,0.00013698,2]
[332872800,1721609441089,-592.29167057,0.00013698,2]
[332872801,1721609441099,-500.0,0.00013698,2]
[332872802,1721609441110,-500.0,0.00013698,2]
[332872803,1721609441119,-500.0,0.00013698,2]
[332872804,1721609441130,-500.0,0.00013698,2]
[332872805,1721609441143,-351.92,0.00013698,2]
[332872806,1721609441153,-500.0,0.00013698,2]
[332872807,1721609441163,-500.0,0.00013698,2]
[332872808,1721609441174,-500.0,0.00013698,2]
[332872809,1721609441184,-627.68,0.00013698,2]
[332872810,1721609441194,-500.0,0.00013698,2]
[332872811,1721609441205,-500.0,0.00013698,2]
[332872812,1721609441216,-565.27,0.00013698,2]
[332872813,1721609441226,-500.0,0.00013698,2]
[332872814,1721609441238,-500.0,0.00013698,2]
[332872815,1721609441248,-500.0,0.00013698,2]
[332872816,1721609441258,-500.0,0.00013698,2]
[332872817,1721609441268,-649.49,0.00013698,2]
[332872818,1721609441278,-500.0,0.00013698,2]
[332872819,1721609441288,-500.0,0.00013698,2]
[332872820,1721609441299,-615.05,0.00013698,2]
[332872821,1721609441309,-500.0,0.00013698,2]
[332872822,1721609441319,-500.0,0.00013698,2]
[332872823,1721609441329,-591.38,0.00013698,2]
[332872824,1721609441340,-500.0,0.00013698,2]
[332872825,1721609441351,-500.0,0.00013698,2]
[332872826,1721609441362,-500.0,0.00013698,2]
[332872827,1721609441373,-500.0,0.00013698,2]
[332872828,1721609441382,-500.0,0.00013698,2]
[332872829,1721609441393,-500.0,0.00013698,2]
[332872830,1721609441403,-500.0,0.00013698,2]
[332872831,1721609441697,-187.45,0.00013698,2]
[332872832,1721609441711,-500.0,0.00013698,2]
[332872833,1721609441720,-500.0,0.00013698,2]
[332872834,1721609441729,-500.0,0.00013698,2]
[332872835,1721609441739,-500.0,0.00013698,2]